fUST/lending_fUST_20241209
["ID","MTS","AMOUNT","RATE_DAILY","PERIOD"]
[344663830,1733705144090,-500.0,0.00030471,2]
[344663831,1733705144110,-500.0,0.00030471,2]
[344663832,1733705144130,-419.19656317,0.00030473,5]
[344663833,1733705144151,-160.30819748,0.00030473,5]
[344663834,1733705144183,-500.0,0.00030473,5]
[344663835,1733705144210,-500.0,0.00030473,5]
[344663836,1733705144232,-501.2689327,0.00030473,5]
[344663837,1733705144252,-500.0,0.00030473,5]
[344663838,1733705144272,-500.0,0.00030473,5]
[344663839,1733705144293,-500.0,0.00030473,5]
[344663840,1733705144315,-500.0,0.00030473,5]
[344663841,1733705144334,-240.90060567,0.00030473,5]
[344663842,1733705144354,-500.0,0.00030473,5]
[344663843,1733705144373,-500.0,0.00030473,5]
[344663844,1733705144393,-579.90616051,0.00030473,2]
[344663845,1733705144413,-500.0,0.00030473,5]
[344663846,1733705144433,-501.3216119,0.00030473,5]
[344663847,1733705144458,-254.31695388,0.00030476,2]
[344663848,1733705144478,-359.11480184,0.00030476,2]
[344663849,1733705144499,-230.57249028,0.00030476,2]
[344663850,1733705144520,-236.69877015,0.00030476,2]
[344663851,1733705144544,-60995.85391631,0.00030477,2]
[344663852,1733705144565,-177.58376297,0.00030477,2]
[344663853,1733705144717,-151.0,0.00030477,7]
[344663854,1733705144738,-151.0,0.00030477,7]
[344663855,1733705144759,-151.0,0.00030477,7]
[344663856,1733705144779,-177.854557,0.00030477,7]
[344663857,1733705144799,-151.0,0.00030477,7]
[344663858,1733705144818,-151.0,0.00030477,7]
[344663859,1733705144837,-151.0,0.00030477,7]
[344663860,1733705144858,-151.0,0.00030477,7]
[344663861,1733705144879,-272.966986,0.00030477,7]
[344663862,1733705144901,-1500.0,0.00030477,30]
[344663863,1733705144922,-151.0,0.00030477,7]
[344663864,1733705144950,-151.0,0.00030477,7]
[344663865,1733705144970,-151.0,0.00030477,7]
[344663866,1733705144990,-190.299705,0.00030477,7]
[344663867,1733705145009,-151.0,0.00030477,7]
[344663868,1733705145028,-151.0,0.00030477,7]
[344663869,1733705145050,-151.0,0.00030477,7]
[344663870,1733705145071,-151.0,0.00030477,7]
[344663871,1733705145091,-151.0,0.00030477,7]
[344663872,1733705145112,-151.0,0.00030477,7]
[344663873,1733705145132,-151.0,0.00030477,7]
[344663874,1733705145155,-151.0,0.00030477,7]
[344663875,1733705145175,-151.0,0.00030477,7]
[344663876,1733705145199,-153.905582,0.00030477,7]
[344663877,1733705145218,-151.0,0.00030477,7]
[344663878,1733705145238,-151.0,0.00030477,7]
[344663879,1733705145258,-151.0,0.00030477,7]
[344663880,1733705145277,-151.0,0.00030477,7]
[344663881,1733705145297,-151.0,0.00030477,7]
[344663882,1733705145316,-151.0,0.00030477,7]
[344663883,1733705145337,-151.0,0.00030477,7]
[344663884,1733705145357,-193.830756,0.00030477,7]
[344663885,1733705145378,-365.313258,0.00030477,7]
[344663886,1733705145398,-365.313258,0.00030477,7]
[344663887,1733705145420,-365.313258,0.00030477,7]
[344663888,1733705145442,-365.313258,0.00030477,7]
[344663889,1733705145465,-365.313258,0.00030477,7]
[344663890,1733705145485,-365.313258,0.00030477,7]
[344663891,1733705145507,-365.313258,0.00030477,7]
[344663892,1733705145527,-365.313258,0.00030477,7]
[344663893,1733705145548,-365.313258,0.00030477,7]
[344663894,1733705145569,-365.313258,0.00030477,7]
[344663895,1733705145589,-365.313258,0.00030477,7]
[344663896,1733705145610,-365.313258,0.00030477,7]
[344663897,1733705145630,-365.313258,0.00030477,7]
[344663898,1733705145650,-365.313258,0.00030477,7]
[344663899,1733705145671,-365.313258,0.00030477,7]
[344663900,1733705145691,-365.313258,0.00030477,7]
[344663901,1733705145713,-365.313258,0.00030477,7]
[344663902,1733705145732,-365.313258,0.00030477,7]
[344663903,1733705145752,-365.313258,0.00030477,7]
[344663904,1733705145771,-365.313263,0.00030477,7]
[344663905,1733705145791,-151.0,0.00030477,7]
[344663906,1733705145810,-151.0,0.00030477,7]
[344663907,1733705145832,-155.110843,0.00030477,7]
[344663908,1733705145853,-151.0,0.00030477,7]
[344663909,1733705145880,-14986.38,0.000305,30]
[344663910,1733705145904,-2379.02,0.000305,30]
[344663911,1733705145925,-286.628798,0.000305,14]
[344663912,1733705145948,-160.0,0.00030505,3]
[344663913,1733705145968,-275.07131306,0.00030505,5]
[344663914,1733705145987,-454.04600394,0.00030592,4]
[344663915,1733705146006,-184.271325,0.00030705,2]
[344663916,1733705146029,-500.0,0.00030723,2]
[344663917,1733705146051,-688.87452442,0.0003073,2]
[344663918,1733705146076,-500.0,0.00030737,2]
[344663919,1733705146096,-454.04600394,0.0003074,4]
[344663920,1733705146115,-500.0,0.00030755,2]
[344663921,1733705146134,-500.0,0.00030758,2]
[344663922,1733705146156,-817.84276713,0.00030771,2]
[344663923,1733705146175,-500.0,0.00030777,2]
[344663924,1733705146198,-500.0,0.00030787,2]
[344663925,1733705146217,-500.0,0.0003079,2]
[344663926,1733705146238,-500.0,0.00030792,2]
[344663927,1733705146257,-500.0,0.00030799,2]
[344663928,1733705146276,-500.0,0.00030799,2]
[344663929,1733705146296,-2000.52480962,0.000308,30]
[344663930,1733705146316,-500.0,0.00030805,2]
[344663931,1733705146336,-500.0,0.00030812,2]
[344663932,1733705146355,-500.0,0.00030815,2]
[344663933,1733705146375,-151.63587974,0.00030886,4]
[344663934,1733705146396,-30000.0,0.0003097,4]
[344663935,1733705146415,-299.00318135,0.0003099,2]
[344663936,1733705146435,-1000.0,0.00031,31]
[344663937,1733705146460,-157.25674862,0.00031,120]
[344663938,1733705146479,-476.89319192,0.00031,10]
[344663939,1733705146498,-1003.4618,0.00031,2]
[344663940,1733705146517,-2000.0,0.00031,2]
[344663941,1733705146538,-593.35890289,0.00031,120]
[344663942,1733705146559,-2120.55920001,0.00031,10]
[344663943,1733705146581,-250.0,0.00031,120]
[344663944,1733705146600,-4118.03631599,0.00031,30]
[344663945,1733705235094,-1230.31496612,0.0003006,2]
[344663946,1733705235115,-1230.31496609,0.00030105,2]
[344663947,1733705235138,-1230.31496609,0.00030151,2]
[344663948,1733705235164,-1230.31496609,0.00030196,2]
[344663949,1733705235194,-1230.31496609,0.00030241,2]
[344663950,1733705235223,-400.0,0.00030285,2]
[344663951,1733705235254,-400.0,0.00030285,2]
[344663952,1733705235282,-1230.31496609,0.00030286,2]
[344663953,1733705235310,-1230.31496609,0.00030332,2]
[344663954,1733705235340,-1230.31496609,0.00030377,2]
[344663955,1733705235365,-500.0,0.00030455,7]
[344663956,1733705235392,-500.0,0.00030473,5]
[344663957,1733705235417,-505.03599983,0.00030473,5]
[344663958,1733705235443,-500.0,0.00030473,5]
[344663959,1733705235469,-500.0,0.00030473,5]
[344663960,1733705235495,-500.0,0.00030473,5]
[344663961,1733705235520,-500.0,0.00030476,2]
[344663962,1733705235547,-622.0405494,0.00030476,2]
[344663963,1733705235575,-500.0,0.00030476,2]
[344663964,1733705235601,-159.18882514,0.00030476,2]
[344663965,1733705235626,-159.35036318,0.00030476,2]
[344663966,1733705235651,-209.0,0.00030477,2]
[344663967,1733705235683,-13321.23,0.000305,30]
[344663968,1733705235709,-2141.12,0.000305,30]
[344663969,1733705235735,-9926.96368401,0.00031,30]
[344663970,1733705235759,-248.017299,0.00031021,5]
[344663971,1733705235786,-1000.0,0.00031021,5]
[344663972,1733705235809,-1000.0,0.00031021,5]
[344663973,1733705235834,-647.10192931,0.00031021,5]
[344663974,1733705235859,-1000.0,0.00031021,5]
[344663975,1733705235881,-454.04600394,0.0003103,4]
[344663976,1733705235905,-500.0,0.00031081,2]
[344663977,1733705235932,-454.04600394,0.0003132,4]
[344663978,1733705235958,-1000.0,0.00031506,116]
[344663979,1733705235983,-1000.0,0.00031506,116]
[344663980,1733705236008,-1000.0,0.00031506,116]
[344663981,1733705236032,-1000.0,0.00031506,116]
[344663982,1733705236059,-1000.0,0.00031506,116]
[344663983,1733705236085,-1000.0,0.00031506,116]
[344663984,1733705236106,-1000.0,0.00031506,116]
[344663985,1733705236129,-1000.0,0.00031506,116]
[344663986,1733705236151,-1000.0,0.00031506,116]
[344663987,1733705236175,-1000.0,0.00031506,116]
[344663988,1733705236203,-1000.0,0.00031506,116]
[344663989,1733705236229,-203.73518205,0.00031506,116]
[344663990,1733705236252,-1000.0,0.00031506,30]
[344663991,1733705236277,-1000.0,0.00031506,30]
[344663992,1733705236298,-1000.0,0.00031506,30]
[344663993,1733705236323,-1000.0,0.00031506,30]
[344663994,1733705236347,-1000.0,0.00031506,30]
[344663995,1733705236371,-1000.0,0.00031506,30]
[344663996,1733705236395,-1000.0,0.00031506,30]
[344663997,1733705236418,-1000.0,0.00031506,30]
[344663998,1733705236440,-1000.0,0.00031506,30]
[344663999,1733705236463,-1000.0,0.00031506,30]
[344664000,1733705236486,-1000.0,0.00031506,30]
[344664001,1733705236509,-1000.0,0.00031506,30]
[344664002,1733705236533,-1000.0,0.00031506,30]
[344664003,1733705236557,-1000.0,0.00031506,30]
[344664004,1733705236585,-1000.0,0.00031506,30]
[344664005,1733705236608,-1000.0,0.00031506,30]
[344664006,1733705236633,-1000.0,0.00031506,30]
[344664007,1733705236657,-1000.0,0.00031506,30]
[344664008,1733705236680,-1000.0,0.00031506,30]
[344664009,1733705236846,-1000.0,0.00031506,30]
[344664010,1733705236867,-1000.0,0.00031506,30]
[344664011,1733705236889,-1000.0,0.00031506,30]
[344664012,1733705236911,-240.49225427,0.00031506,30]
[344664013,1733705236933,-500.0,0.00031506,5]
[344664014,1733705236954,-500.0,0.00031506,5]
[344664015,1733705236976,-500.0,0.00031506,5]
[344664016,1733705236996,-500.0,0.00031506,5]
[344664017,1733705237017,-500.0,0.00031506,5]
[344664018,1733705237038,-500.0,0.00031506,5]
[344664019,1733705237059,-254.39369215,0.00031506,5]
[344664020,1733705237085,-16145.58435065,0.000316,2]
[344664021,1733705237110,-575.34668374,0.0003161,4]
[344664022,1733705237132,-180.0,0.0003162,120]
[344664023,1733705237153,-157.85360061,0.0003162,120]
[344664024,1733705237179,-10733.81796571,0.0003162,120]
[344664025,1733705237203,-1000.0,0.00031629,2]
[344664026,1733705237226,-14000.0167649,0.000318,2]
[344664027,1733705237249,-500.0,0.00031825,9]
[344664028,1733705237270,-500.0,0.00031873,5]
[344664029,1733705237291,-500.0,0.00031873,5]
[344664030,1733705237313,-166748.18620026,0.000319,2]
[344664031,1733705243158,-19574.753247,0.000319,2]
[344664032,1733705245112,-4975.66395784,0.000319,2]
[344664042,1733705436170,-180.04,0.000303,2]
[344664043,1733705436180,-648.36919659,0.00030473,2]
[344664044,1733705436189,-500.0,0.00030473,5]
[344664045,1733705436199,-500.0,0.00030473,5]
[344664046,1733705436210,-500.0,0.00030476,5]
[344664047,1733705436221,-161.59080341,0.00030476,5]
[344664048,1733705436232,-338.40919659,0.00030476,5]
[344664049,1733705436244,-500.0,0.00030476,5]
[344664050,1733705436254,-401.64079841,0.00030476,5]
[344664053,1733705436266,-98.35920159,0.00030476,5]
[344664055,1733705436275,-500.0,0.00030476,5]
[344664057,1733705436286,-222.94047409,0.00030476,5]
[344664059,1733705436297,-277.05952591,0.00030476,5]
[344664061,1733705436307,-500.0,0.00030476,5]
[344664063,1733705436318,-500.0,0.00030476,5]
[344664065,1733705436328,-500.0,0.00030476,5]
[344664067,1733705436338,-500.0,0.00030476,5]
[344664070,1733705436347,-400.0,0.00030476,2]
[344664073,1733705436356,-500.0,0.00030476,5]
[344664076,1733705436365,-500.0,0.00030476,5]
[344664079,1733705436374,-500.0,0.00030476,5]
[344664082,1733705436383,-176.88499707,0.00030476,5]
[344664087,1733705436403,-420.0,0.00030477,2]
[344664090,1733705436413,-30497.92695816,0.00030477,2]
[344664093,1733705436423,-177.58376296,0.00030477,2]
[344664096,1733705436433,-281960.54475563,0.00030477,10]
[344664101,1733705436446,-9969.1,0.00030477,10]
[344664104,1733705436461,-16284.69848472,0.00030477,10]
[344664107,1733705436472,-257.9874834,0.00030477,10]
[344664167,1733705438598,-411.19949038,0.00030477,10]
[344664174,1733705438657,-10662.45586872,0.00030477,10]
[344664210,1733705440403,-26556.931298,0.00030477,10]
[344664218,1733705441990,-552.85155087,0.00030453,2]
[344664220,1733705442002,-700.7985,0.00030453,2]
[344664221,1733705442039,-12904.9290096,0.00030453,2]
[344664241,1733705443772,-9301.48937026,0.00030453,2]
[344664242,1733705443782,-500.0,0.00030473,5]
[344664243,1733705443792,-11505.93589843,0.00030477,10]
[344664244,1733705443805,-21297.38673015,0.00030477,10]
[344664245,1733705443884,-735.75098876,0.00030477,10]
[344664275,1733705448478,-34765.7352023,0.00030477,10]
[344664276,1733705448501,-2174.972583,0.00030477,10]
[344664279,1733705820433,159.357093,0.00013973,2]
[344664282,1733706441161,-159.357093,0.00022759,2]
[344664283,1733706441181,-500.0,0.00022759,2]
[344664284,1733706441210,-202.0,0.00023,2]
[344664285,1733706441237,-151.44572887,0.0002579,2]
[344664286,1733706441259,-186.2575568,0.00028141,2]
[344664287,1733706441279,-171.854063,0.00028167,2]
[344664288,1733706441300,-289.504,0.00028401,2]
[344664289,1733706441324,-300.0,0.0002854,2]
[344664290,1733706441345,-300.0,0.0002854,2]
[344664291,1733706441366,-11842.3385135,0.00028541,2]
[344664292,1733706441386,-160.0,0.0003,2]
[344664293,1733706441409,-448.402,0.000303,2]
[344664294,1733706441431,-177.04,0.000303,2]
[344664295,1733706441453,-369.23062761,0.00030305,5]
[344664296,1733706441474,-178.65734057,0.00030388,2]
[344664297,1733706441497,-500.0,0.0003047,7]
[344664298,1733706441518,-500.0,0.00030473,5]
[344664299,1733706441539,-500.0,0.00030473,5]
[344664300,1733706441560,-500.0,0.00030476,5]
[344664301,1733706441582,-500.0,0.00030476,5]
[344664302,1733706441605,-500.0,0.00030476,5]
[344664303,1733706441626,-161.4007432,0.00030487,2]
[344664304,1733706441648,-178.02186772,0.00030487,2]
[344664305,1733706441669,-251.38036129,0.00030487,2]
[344664306,1733706441692,-165.68913911,0.00030487,2]
[344664307,1733706441714,-500.0,0.00030487,2]
[344664308,1733706441736,-500.0,0.00030487,2]
[344664309,1733706441759,-384.21206093,0.00030487,2]
[344664310,1733706441782,-5962.88715948,0.00030487,2]
[344664341,1733706635423,-200.0,0.00029487,2]
[344664343,1733706635433,-159.34,0.000304,2]
[344664345,1733706635443,-500.0,0.00030473,5]
[344664347,1733706635452,-400.0,0.00030486,2]
[344664349,1733706635461,-400.0,0.00030486,2]
[344664351,1733706635470,-3462.25350603,0.00030487,2]
[344664353,1733706635482,-744.680002,0.00030487,2]
[344664401,1733706637882,-1301.47916953,0.00030487,2]
[344664402,1733706637894,-684.29268817,0.00030487,2]
[344664403,1733706637905,-6074.81453361,0.00030487,2]
[344664404,1733706637915,-122625.37438391,0.00030488,10]
[344664405,1733706637944,-596.1,0.00030488,10]
[344664449,1733706642973,-408.69284149,0.00030473,5]
[344664451,1733706642983,-500.0,0.00030486,5]
[344664452,1733706642993,-500.0,0.00030487,5]
[344664453,1733706643002,-500.0,0.00030487,5]
[344664455,1733706643012,-3809.48045227,0.00030488,10]
[344664457,1733706643025,-2442.72091099,0.00030488,10]
[344664465,1733706643093,-76123.43854626,0.00030488,10]
[344664542,1733706646227,-500.0,0.00030487,5]
[344664544,1733706646237,-500.0,0.00030487,5]
[344664546,1733706646246,-500.0,0.00030487,5]
[344664548,1733706646256,-500.0,0.00030487,5]
[344664550,1733706646265,-500.0,0.00030487,5]
[344664552,1733706646275,-448.85313945,0.00030487,5]
[344664555,1733706646286,-51.14686055,0.00030487,5]
[344664557,1733706646295,-500.0,0.00030487,5]
[344664559,1733706646305,-500.0,0.00030487,5]
[344664561,1733706646314,-14261.94801243,0.00030488,10]
[344664563,1733706646325,-151249.10994564,0.00030488,10]
[344664603,1733707193237,160.614625,0.00013973,2]
[344664615,1733707750218,-8524.53806499,0.00020377,2]
[344664616,1733707750241,-160.614625,0.00023435,2]
[344664617,1733707750265,-36203.0,0.00025988,2]
[344664618,1733707750287,-300.0,0.00025988,2]
[344664619,1733707750311,-33502.63538624,0.0002599,2]
[344664620,1733707750332,-1694.18972162,0.00027,28]
[344664643,1733707832297,-1704.43627399,0.00027,28]
[344664645,1733707832307,-713.4826683,0.00027551,2]
[344664647,1733707832316,-200.0,0.00029004,2]
[344664649,1733707832326,-184.0,0.00029099,2]
[344664651,1733707832336,-377.72124415,0.000291,2]
[344664653,1733707832348,-53735.7667897,0.000291,2]
[344664655,1733707832454,-476.46683392,0.000291,2]
[344664659,1733707838044,-25410.04513223,0.000291,2]
[344664660,1733707838055,-220.29383194,0.00029241,2]
[344664661,1733707838066,-302.652876,0.00029341,2]
[344664662,1733707838075,-220.29383189,0.00029409,2]
[344664663,1733707838085,-220.29383189,0.00029577,2]
[344664664,1733707838094,-414.0,0.0003,7]
[344664665,1733707838105,-17107.40642809,0.0003,2]
[344664666,1733707838117,-9001.59357191,0.0003,2]
[344664667,1733707838126,-151.0,0.0003,120]
[344664668,1733707838135,-503.72467824,0.00030136,5]
[344664669,1733707838145,-500.0,0.00030136,5]
[344664670,1733707838154,-404.13857574,0.00030136,5]
[344664671,1733707838164,-503.05244637,0.00030136,5]
[344664672,1733707838174,-500.0,0.00030168,5]
[344664673,1733707838183,-429.485,0.000303,2]
[344664674,1733707838193,-666.0,0.00030388,2]
[344664675,1733707838202,-177.7922051,0.00030399,2]
[344664677,1733707838212,-150.0,0.000304,2]
[344664679,1733707838222,-19200.41053126,0.000304,120]
[344664681,1733707838233,-47373.70108802,0.000304,120]
[344664683,1733707838245,-664.80000001,0.000304,120]
[344664686,1733707838257,-53277.60745993,0.000304,120]
[344664698,1733707840296,-185.134,0.00029142,2]
[344664699,1733707840308,-147.78588524,0.00029745,2]
[344664720,1733707843657,-72.50794665,0.00029745,2]
[344664721,1733707843667,-226.72554248,0.00029999,2]
[344664722,1733707843676,-160.76651087,0.000304,120]
[344664729,1733707846296,-220.29383189,0.00029914,2]
[344664730,1733707846305,-719.70616811,0.000304,120]
[344664736,1733707960298,6525.70169326,0.00030518,30]
[344664738,1733707980983,300.0,0.000176,3]
[344664739,1733707999623,10000.0,0.00030518,30]
[344664743,1733708251361,164.423002,0.00013973,2]
[344664746,1733708730120,-5000.0,0.00021732,2]
[344664747,1733708730142,-5000.0,0.00021952,2]
[344664748,1733708730164,-300.0,0.00022172,2]
[344664749,1733708730186,-164.423002,0.00022174,2]
[344664750,1733708730207,-420.0,0.00024089,2]
[344664751,1733708730227,-36203.0,0.00025,2]
[344664752,1733708730247,-587.0,0.00026172,2]
[344664753,1733708730268,-150.0,0.00026799,2]
[344664754,1733708730291,-1356.7311457,0.000269,2]
[344664755,1733708730311,-168.6155381,0.00026923,2]
[344664756,1733708730336,-150.0,0.00026986,2]
[344664757,1733708730356,-150.0,0.00027367,2]
[344664758,1733708730378,-150.0,0.00027611,2]
[344664759,1733708730397,-150.0,0.00027825,2]
[344664760,1733708730417,-256.5782192,0.00027853,2]
[344664761,1733708730436,-191.83,0.00028,2]
[344664762,1733708730457,-150.0,0.00028078,2]
[344664763,1733708730478,-150.0,0.00028333,2]
[344664764,1733708730498,-823.0,0.00028436,2]
[344664765,1733708730518,-150.0,0.00028576,2]
[344664766,1733708730542,-171.854063,0.00028956,2]
[344664767,1733708730566,-24900.0,0.00028988,2]
[344664768,1733708730587,-150.0,0.00029037,2]
[344664769,1733708730606,-150.0,0.00029215,2]
[344664770,1733708730626,-4773.8537495,0.00029334,2]
[344664771,1733708730647,-150.0,0.00029534,2]
[344664772,1733708730669,-150.0,0.00029671,2]
[344664773,1733708730689,-150.0,0.00029941,120]
[344664774,1733708730709,-1845.04423703,0.0003,30]
[344664775,1733708730730,-300.0,0.0003,14]
[344664776,1733708730752,-305.0,0.0003,7]
[344664777,1733708730772,-308.95618344,0.0003,14]
[344664778,1733708730795,-500.0,0.0003,30]
[344664779,1733708730815,-24578.10190675,0.0003,120]
[344664780,1733708730835,-271.0,0.0003,2]
[344664781,1733708730854,-181.64300759,0.00030126,2]
[344664782,1733708730886,-511.20857374,0.00030136,5]
[344664783,1733708730906,-401.00219653,0.00030136,5]
[344664784,1733708730926,-502.6395357,0.00030136,5]
[344664785,1733708730945,-503.15021989,0.00030136,5]
[344664786,1733708730966,-231.35267585,0.00030136,5]
[344664787,1733708730988,-517.66992568,0.00030136,5]
[344664788,1733708731010,-504.32694556,0.00030136,5]
[344664789,1733708731032,-505.06785642,0.00030136,5]
[344664790,1733708731055,-504.49521578,0.00030136,5]
[344664791,1733708731082,-516.22638284,0.00030136,5]
[344664792,1733708731103,-505.41845339,0.00030136,5]
[344664793,1733708731123,-505.79412054,0.00030136,5]
[344664794,1733708731144,-512.02974823,0.00030136,5]
[344664795,1733708731163,-507.27467008,0.00030136,5]
[344664796,1733708731183,-512.72698946,0.00030136,5]
[344664797,1733708731203,-510.27448797,0.00030136,5]
[344664798,1733708731224,-500.0,0.00030136,5]
[344664799,1733708731244,-500.0,0.00030136,5]
[344664800,1733708731265,-500.0,0.00030136,5]
[344664801,1733708731289,-447.88045609,0.00030136,5]
[344664802,1733708731310,-491.05458489,0.00030136,5]
[344664809,1733708836247,-175.42352588,0.00026072,2]
[344664810,1733708836270,-175.42352586,0.00027522,2]
[344664811,1733708836292,-175.42352586,0.00028971,2]
[344664812,1733708836318,-302.70270332,0.00029985,2]
[344664813,1733708836344,-400.0,0.00030135,2]
[344664814,1733708836366,-17.56646344,0.00030136,5]
[344664815,1733708836393,-508.70162394,0.00030136,5]
[344664816,1733708836416,-504.77345003,0.00030136,5]
[344664817,1733708836437,-541.82873219,0.00030136,5]
[344664818,1733708836459,-507.34314576,0.00030136,5]
[344664819,1733708836481,-518.20518434,0.00030136,5]
[344664820,1733708836504,-505.59108863,0.00030136,5]
[344664821,1733708836526,-500.0,0.00030136,5]
[344664822,1733708836548,-500.0,0.00030136,5]
[344664823,1733708836573,-508.91574977,0.00030136,5]
[344664824,1733708836595,-500.0,0.00030136,5]
[344664825,1733708836616,-500.0,0.00030136,5]
[344664826,1733708836638,-584.00058209,0.00030136,5]
[344664827,1733708836659,-500.0,0.00030136,5]
[344664828,1733708836684,-500.0,0.00030136,5]
[344664829,1733708836705,-500.0,0.00030136,5]
[344664830,1733708836726,-500.0,0.00030136,5]
[344664831,1733708836748,-500.0,0.00030136,5]
[344664832,1733708836769,-301.49390987,0.00030136,5]
[344664833,1733708836790,-595.48438265,0.00030136,5]
[344664834,1733708836813,-566.96031012,0.00030136,5]
[344664835,1733708836834,-500.0,0.00030136,5]
[344664836,1733708836856,-500.0,0.00030136,5]
[344664837,1733708836878,-505.30411676,0.00030136,5]
[344664838,1733708836899,-500.0,0.00030136,5]
[344664839,1733708836922,-500.0,0.00030136,5]
[344664840,1733708836946,-500.0,0.00030136,5]
[344664841,1733708836970,-500.0,0.00030136,5]
[344664842,1733708836996,-500.0,0.00030136,5]
[344664843,1733708837018,-500.0,0.00030136,5]
[344664844,1733708837040,-500.0,0.00030136,5]
[344664845,1733708837173,-500.0,0.00030136,5]
[344664846,1733708837196,-276.58748546,0.00030136,5]
[344664847,1733708837218,-505.78844861,0.00030136,5]
[344664848,1733708837241,-506.03684141,0.00030136,5]
[344664849,1733708837263,-506.61628592,0.00030136,5]
[344664850,1733708837284,-500.0,0.00030136,5]
[344664851,1733708837305,-500.0,0.00030136,5]
[344664852,1733708837334,-500.0,0.00030136,5]
[344664853,1733708837356,-500.0,0.00030136,5]
[344664854,1733708837379,-595.48286052,0.00030136,5]
[344664855,1733708837400,-500.0,0.00030136,5]
[344664856,1733708837424,-500.0,0.00030136,5]
[344664857,1733708837446,-500.0,0.00030136,5]
[344664858,1733708837468,-500.0,0.00030136,5]
[344664859,1733708837490,-500.0,0.00030136,5]
[344664860,1733708837511,-505.72253211,0.00030136,5]
[344664861,1733708837533,-510.03956406,0.00030136,5]
[344664862,1733708837554,-500.0,0.00030136,5]
[344664863,1733708837579,-500.0,0.00030136,5]
[344664864,1733708837600,-504.29208695,0.00030136,5]
[344664865,1733708837621,-502.01977477,0.00030136,5]
[344664866,1733708837642,-500.0,0.00030136,5]
[344664867,1733708837663,-500.0,0.00030136,5]
[344664868,1733708837685,-500.0,0.00030136,5]
[344664869,1733708837706,-500.0,0.00030136,5]
[344664870,1733708837727,-500.0,0.00030136,5]
[344664871,1733708837748,-500.0,0.00030136,5]
[344664872,1733708837769,-500.0,0.00030136,5]
[344664873,1733708837791,-500.0,0.00030136,5]
[344664874,1733708837813,-510.5239022,0.00030136,5]
[344664875,1733708837834,-505.47752143,0.00030136,5]
[344664876,1733708837856,-508.41288466,0.00030136,5]
[344664877,1733708837877,-500.0,0.00030136,5]
[344664878,1733708837898,-383.45396456,0.00030136,5]
[344664879,1733708837919,-500.0,0.00030136,5]
[344664880,1733708837939,-500.0,0.00030136,5]
[344664881,1733708837960,-500.0,0.00030136,5]
[344664882,1733708837981,-500.0,0.00030136,5]
[344664883,1733708838002,-500.0,0.00030136,5]
[344664884,1733708838024,-500.0,0.00030136,5]
[344664885,1733708838046,-500.0,0.00030136,5]
[344664886,1733708838070,-500.0,0.00030136,5]
[344664887,1733708838093,-500.0,0.00030136,5]
[344664888,1733708838114,-500.0,0.00030136,5]
[344664889,1733708838139,-504.34654546,0.00030136,5]
[344664890,1733708838161,-502.68703933,0.00030136,5]
[344664891,1733708838182,-507.91851727,0.00030136,5]
[344664892,1733708838205,-500.0,0.00030136,5]
[344664893,1733708838226,-500.0,0.00030136,5]
[344664894,1733708838247,-506.32840657,0.00030136,5]
[344664895,1733708838268,-500.0,0.00030136,5]
[344664896,1733708838290,-138.91951507,0.00030136,5]
[344664897,1733708838325,-361.08048493,0.00030136,5]
[344664898,1733708838348,-313.85722547,0.00030136,5]
[344664899,1733708838370,-536.04317467,0.00030136,5]